fUST/lending_fUST_20250219
["ID","MTS","AMOUNT","RATE_DAILY","PERIOD"]
[353626672,1739967045984,-456.0,0.00016529,2]
[353626673,1739967045994,-456.0,0.00016529,2]
[353626674,1739967046003,-456.0,0.00016529,2]
[353626675,1739967046013,-456.0,0.00016529,2]
[353626676,1739967046022,-456.0,0.00016529,2]
[353626677,1739967046031,-456.0,0.00016529,2]
[353626678,1739967046040,-456.0,0.00016529,2]
[353626679,1739967046049,-456.0,0.00016529,2]
[353626681,1739967046058,-456.0,0.00016529,2]
[353626682,1739967046069,-456.0,0.00016529,2]
[353626683,1739967046078,-456.0,0.00016529,2]
[353626684,1739967046088,-587.0,0.0001653,2]
[353626685,1739967046098,-587.0,0.0001653,2]
[353626686,1739967046107,-587.0,0.0001653,2]
[353626687,1739967046118,-587.0,0.0001653,2]
[353626689,1739967046127,-587.0,0.0001653,2]
[353626690,1739967046137,-587.0,0.0001653,2]
[353626691,1739967046147,-587.0,0.0001653,2]
[353626692,1739967046156,-587.0,0.0001653,2]
[353626693,1739967046166,-587.0,0.0001653,2]
[353626695,1739967046175,-587.0,0.0001653,2]
[353626696,1739967046185,-587.0,0.0001653,2]
[353626697,1739967046194,-587.0,0.0001653,2]
[353626698,1739967046204,-587.0,0.0001653,2]
[353626699,1739967046213,-587.0,0.0001653,2]
[353626700,1739967046223,-587.0,0.0001653,2]
[353626701,1739967046233,-587.0,0.0001653,2]
[353626702,1739967046243,-587.0,0.0001653,2]
[353626703,1739967046252,-456.0,0.00016531,2]
[353626704,1739967046262,-456.0,0.00016531,2]
[353626705,1739967046272,-456.0,0.00016531,2]
[353626706,1739967046281,-456.0,0.00016531,2]
[353626707,1739967046293,-587.0,0.00016531,2]
[353626708,1739967046303,-587.0,0.00016531,2]
[353626709,1739967046313,-500.0,0.00016609,2]
[353626710,1739967046324,-151.0,0.000167,2]
[353626711,1739967046333,-500.0,0.00016709,2]
[353626712,1739967046343,-500.00643651,0.00016721,2]
[353626713,1739967046352,-331.98758965,0.00016721,2]
[353626714,1739967046363,-1000.0,0.00016721,2]
[353626715,1739967046373,-467.5136888,0.00016721,2]
[353626716,1739967046384,-151.0,0.000168,2]
[353626717,1739967046394,-500.0,0.00016809,2]
[353626718,1739967046404,-2000.0,0.0001682,2]
[353626719,1739967046414,-557.1188801,0.00016884,2]
[353626720,1739967046424,-557.1188801,0.00016884,2]
[353626721,1739967046434,-557.1188801,0.00016884,2]
[353626722,1739967046445,-557.1188801,0.00016884,2]
[353626723,1739967046455,-557.1188801,0.00016884,2]
[353626724,1739967046465,-557.1188801,0.00016884,2]
[353626725,1739967046475,-600.0,0.00016904,2]
[353626726,1739967046486,-500.0,0.00016909,2]
[353626727,1739967046495,-347.3337172,0.00016939,2]
[353626728,1739967046506,-153.380625,0.0001694,2]
[353626729,1739967046516,-151.0,0.00017,2]
[353626730,1739967046526,-500.0,0.00017,7]
[353626731,1739967046536,-500.0,0.00017,7]
[353626732,1739967046549,-500.0,0.00017,7]
[353626733,1739967046559,-566.69,0.00017,7]
[353626734,1739967046569,-500.0,0.00017,7]
[353626735,1739967046580,-500.0,0.00017,7]
[353626736,1739967046590,-500.0,0.00017,7]
[353626737,1739967046601,-500.0,0.00017,7]
[353626738,1739967046611,-500.0,0.00017,7]
[353626739,1739967046621,-500.0,0.00017,7]
[353626740,1739967046632,-500.0,0.00017009,2]
[353626741,1739967046643,-168.50588552,0.00017038,2]
[353626742,1739967046653,-355.163177,0.00017041,2]
[353626743,1739967046663,-355.163177,0.00017041,2]
[353626744,1739967046673,-355.163177,0.00017041,2]
[353626745,1739967046683,-500.0,0.00017109,2]
[353626746,1739967046700,-347.259554,0.00017123,2]
[353626747,1739967046710,-153.0,0.00017178,2]
[353626748,1739967046719,-153.0,0.00017178,2]
[353626749,1739967046730,-151.0,0.000172,2]
[353626750,1739967046741,-485.52115734,0.000172,2]
[353626751,1739967046752,-500.0,0.00017209,2]
[353626752,1739967046763,-557.1188801,0.00017213,2]
[353626753,1739967046774,-557.1188801,0.00017213,2]
[353626754,1739967046784,-2048.5122614,0.00017247,2]
[353626755,1739967046795,-150.0,0.00017298,2]
[353626756,1739967046805,-187.59,0.00017298,2]
[353626757,1739967046815,-154.519,0.00017298,2]
[353626758,1739967046825,-253.439,0.00017298,2]
[353626759,1739967046835,-150.0,0.00017298,2]
[353626760,1739967046845,-538.0,0.00017298,2]
[353626761,1739967046855,-1971.0,0.00017298,2]
[353626762,1739967046867,-2331.589,0.00017298,2]
[353626763,1739967046878,-151.0,0.000173,2]
[353626764,1739967046889,-500.0,0.00017309,2]
[353626765,1739967046900,-500.0,0.00017409,2]
[353626766,1739967046913,-17469.72639639,0.00017499,2]
[353626767,1739967046923,-150.78984482,0.000175,2]
[353626768,1739967046933,-150.78,0.000175,2]
[353626769,1739967046944,-1358.00983655,0.000175,2]
[353626770,1739967046955,-156.55855535,0.000175,2]
[353626771,1739967046966,-156.55855535,0.000175,2]
[353626772,1739967046977,-156.55855535,0.000175,2]
[353626773,1739967046988,-156.55855535,0.000175,2]
[353626774,1739967046999,-156.55855535,0.000175,2]
[353626775,1739967047010,-156.55855535,0.000175,2]
[353626776,1739967047021,-156.55855535,0.000175,2]
[353626777,1739967047032,-156.55855535,0.000175,2]
[353626778,1739967047042,-156.55855535,0.000175,2]
[353626779,1739967047052,-156.55855535,0.000175,2]
[353626780,1739967047062,-156.55855535,0.000175,2]
[353626781,1739967047073,-156.55855535,0.000175,2]
[353626782,1739967047083,-156.55855535,0.000175,2]
[353626783,1739967047094,-156.55855535,0.000175,2]
[353626784,1739967047104,-156.55855535,0.000175,2]
[353626785,1739967047118,-156.55,0.000175,2]
[353626786,1739967047128,-151.85841218,0.000175,2]
[353626787,1739967047139,-151.85841218,0.000175,2]
[353626788,1739967047150,-151.85841218,0.000175,2]
[353626789,1739967047160,-151.85841218,0.000175,2]
[353626790,1739967047171,-151.85841218,0.000175,2]
[353626791,1739967047182,-151.85841218,0.000175,2]
[353626792,1739967047193,-151.85841218,0.000175,2]
[353626793,1739967047203,-151.85841218,0.000175,2]
[353626794,1739967047214,-151.85841218,0.000175,2]
[353626795,1739967047224,-151.85841218,0.000175,2]
[353626796,1739967047234,-151.85841218,0.000175,2]
[353626797,1739967047245,-151.85841218,0.000175,2]
[353626798,1739967047255,-151.85841218,0.000175,2]
[353626799,1739967047266,-151.85841218,0.000175,2]
[353626800,1739967047278,-151.85841218,0.000175,2]
[353626801,1739967047295,-151.85841218,0.000175,2]
[353626802,1739967047306,-151.85841218,0.000175,2]
[353626803,1739967047320,-151.85841218,0.000175,2]
[353626804,1739967047332,-151.85,0.000175,2]
[353626805,1739967047343,-500.0,0.00017509,2]
[353626806,1739967047353,-154.65899617,0.00017534,4]
[353626807,1739967047364,-324.0,0.0001754,2]
[353626808,1739967047375,-1358.00983653,0.00017544,2]
[353626809,1739967047386,-500.0,0.00017573,2]
[353626810,1739967047397,-500.18961432,0.00017573,2]
[353626811,1739967047409,-349.0,0.00017575,2]
[353626812,1739967047419,-349.0,0.00017575,2]
[353626813,1739967047428,-314.0,0.00017575,2]
[353626814,1739967047438,-349.0,0.00017575,2]
[353626815,1739967047448,-314.0,0.00017575,2]
[353626816,1739967047459,-314.0,0.00017575,2]
[353626817,1739967047469,-349.0,0.00017575,2]
[353626818,1739967047478,-314.0,0.00017575,2]
[353626819,1739967047487,-349.0,0.00017575,2]
[353626820,1739967047497,-314.0,0.00017575,2]
[353626821,1739967047507,-314.0,0.00017575,2]
[353626822,1739967047516,-217.11643488,0.00017575,2]
[353626823,1739967047526,-314.0,0.00017575,2]
[353626824,1739967047536,-314.0,0.00017575,2]
[353626825,1739967047547,-411.39151502,0.00017575,2]
[353626826,1739967047557,-204.66108231,0.00017575,2]
[353626827,1739967047567,-314.0,0.00017575,2]
[353626828,1739967047577,-314.0,0.00017575,2]
[353626829,1739967047592,-261.86072004,0.00017575,2]
[353626830,1739967047609,-18958.26702669,0.0001758,7]
[353626831,1739967047624,-1358.00983653,0.00017589,2]
[353626832,1739967047638,-206.96749376,0.00017598,2]
[353626833,1739967047648,-160.0,0.00017599,2]
[353626834,1739967047658,-160.0,0.00017599,2]
[353626835,1739967047668,-1363017.62610454,0.000176,10]
[353626836,1739967047994,-500.0,0.0001378,2]
[353626837,1739967048005,-500.0,0.00014273,2]
[353626838,1739967048016,-500.0,0.00014356,2]
[353626839,1739967048027,-500.0,0.00014438,2]
[353626840,1739967048038,-379.24523091,0.0001452,2]
[353626841,1739967048049,-396.0,0.0001687,2]
[353626842,1739967048061,-557.1188801,0.00016884,2]
[353626843,1739967048071,-355.163177,0.00017041,2]
[353626844,1739967048084,-2167.26071907,0.000176,10]
[353626845,1739967048100,-3767.66685293,0.000176,10]
[353626846,1739967048116,-494.18,0.000176,10]
[353626854,1739967845140,216.317303,9.041e-05,2]
[353626856,1739968034135,-300.0,0.00012697,2]
[353626857,1739968034158,-90.86383947,0.00012698,2]
[353626859,1739968044117,-1385.74207641,0.00012698,2]
[353626860,1739968046085,-1773.57851894,0.00012698,2]
[353626875,1739968145170,-806.60445149,0.00010959,2]
[353626881,1739968169076,-80.70554851,0.00010959,2]
[353626882,1739968169097,-300.0,0.0001257,2]
[353626883,1739968169118,-300.0,0.00012697,2]
[353626884,1739968169139,-299.29445149,0.00012698,2]
[353626985,1739968238447,-400.0,0.00012571,2]
[353626987,1739968238458,-300.0,0.00012697,2]
[353626989,1739968238468,-21350.52111369,0.00012698,2]
[353626991,1739968238479,-639.12596121,0.00013598,2]
[353626993,1739968238488,-169.45457312,0.00013598,2]
[353626995,1739968238497,-360.56095781,0.00013697,2]
[353626997,1739968238507,-500.0,0.00013698,2]
[353626999,1739968238518,-500.0,0.00013698,2]
[353627001,1739968238527,-500.0,0.00013698,2]
[353627004,1739968238537,-500.0,0.00013698,2]
[353627005,1739968238547,-500.0,0.00013698,2]
[353627007,1739968238556,-500.0,0.00013698,2]
[353627009,1739968238565,-500.0,0.00013698,2]
[353627011,1739968238575,-500.0,0.00013698,2]
[353627013,1739968238584,-500.0,0.00013698,2]
[353627015,1739968238593,-500.0,0.00013698,2]
[353627017,1739968238603,-500.0,0.00013698,2]
[353627019,1739968238613,-501.229125,0.00013698,2]
[353627021,1739968238623,-501.7359333,0.00013698,2]
[353627023,1739968238632,-500.0,0.00013698,2]
[353627026,1739968238643,-500.0,0.00013698,2]
[353627029,1739968238653,-96.63847799,0.00013698,2]
[353627034,1739968238677,-307.82442636,0.00013698,2]
[353627059,1739968238865,-95.53709565,0.00013698,2]
[353627061,1739968238875,-83.25825166,0.00013698,2]
[353627174,1739968240799,-416.74174834,0.00013698,2]
[353627175,1739968240808,-208.81057359,0.00013698,2]
[353627219,1739968246909,-292.65581936,0.00013698,2]
[353627220,1739968246919,-409.97703076,0.00013698,2]
[353627225,1739968901945,205.501437,9.041e-05,2]
[353627233,1739969226147,-300.0,0.00012672,2]
[353627234,1739969226169,-1182.15910222,0.00012673,2]
[353627237,1739969361162,-300.0,0.00012672,2]
[353627238,1739969361183,-680.0,0.00012673,2]
[353627472,1739969436137,-300.0,0.00012672,2]
[353627473,1739969436146,-10199.65029631,0.00012673,2]
[353627474,1739969436158,-12838.19060147,0.00012673,2]
[353627475,1739969436169,-700.0,0.00013068,2]
[353627476,1739969436178,-168.74305742,0.00013467,2]
[353627477,1739969436187,-500.0,0.00013491,2]
[353627478,1739969436197,-500.0,0.00013491,2]
[353627479,1739969436206,-230.787,0.00013491,2]
[353627480,1739969436216,-500.0,0.00013491,2]
[353627481,1739969436225,-500.0,0.00013491,2]
[353627482,1739969436235,-500.0,0.00013491,2]
[353627483,1739969436244,-500.0,0.00013491,2]
[353627484,1739969436253,-500.0,0.00013491,2]
[353627485,1739969436263,-500.0,0.00013491,2]
[353627486,1739969436272,-500.0,0.00013491,2]
[353627487,1739969436281,-494.78567854,0.00013491,2]
[353627488,1739969436290,-500.0,0.00013491,2]
[353627489,1739969436300,-500.0,0.00013491,2]
[353627490,1739969436309,-500.0,0.00013491,2]
[353627491,1739969436319,-500.0,0.00013491,2]
[353627492,1739969436328,-500.0,0.00013491,2]
[353627493,1739969436337,-500.0,0.00013491,2]
[353627494,1739969436347,-500.0,0.00013491,2]
[353627495,1739969436356,-500.0,0.00013491,2]
[353627496,1739969436365,-500.0,0.00013491,2]
[353627497,1739969436374,-500.0,0.00013491,2]
[353627498,1739969436383,-500.0,0.00013491,2]
[353627499,1739969436393,-500.0,0.00013491,2]
[353627500,1739969436402,-500.0,0.00013491,2]
[353627501,1739969436411,-500.0,0.00013491,2]
[353627502,1739969436421,-500.0,0.00013491,2]
[353627503,1739969436430,-500.0,0.00013491,2]
[353627504,1739969436439,-500.0,0.00013491,2]
[353627505,1739969436449,-500.0,0.00013491,2]
[353627506,1739969436458,-500.0,0.00013491,2]
[353627507,1739969436467,-500.0,0.00013491,2]
[353627508,1739969436477,-500.0,0.00013491,2]
[353627509,1739969436486,-500.0,0.00013491,2]
[353627510,1739969436495,-500.0,0.00013491,2]
[353627511,1739969436504,-500.0,0.00013491,2]
[353627512,1739969436626,-500.0,0.00013491,2]
[353627513,1739969436636,-500.0,0.00013491,2]
[353627514,1739969436646,-500.0,0.00013491,2]
[353627515,1739969436655,-500.0,0.00013491,2]
[353627516,1739969436665,-500.0,0.00013491,2]
[353627517,1739969436674,-500.0,0.00013491,2]
[353627518,1739969436684,-500.0,0.00013491,2]
[353627519,1739969436693,-500.0,0.00013491,2]
[353627520,1739969436702,-500.0,0.00013491,2]
[353627521,1739969436712,-500.0,0.00013491,2]
[353627522,1739969436721,-500.0,0.00013491,2]
[353627523,1739969436731,-500.0,0.00013491,2]
[353627524,1739969436741,-488.87340627,0.00013491,2]
[353627525,1739969436750,-500.0,0.00013491,2]
[353627526,1739969436760,-500.0,0.00013491,2]
[353627527,1739969436769,-500.0,0.00013491,2]
[353627528,1739969436779,-500.0,0.00013491,2]
[353627529,1739969436788,-500.0,0.00013491,2]
[353627530,1739969436798,-500.0,0.00013491,2]
[353627531,1739969436807,-448.04264606,0.00013491,2]
[353627532,1739969436817,-75328.59165522,0.00013543,5]
[353627533,1739969436826,-14654.7319338,0.00013543,5]
[353627534,1739969436835,-13275.53870192,0.00013543,2]
[353627535,1739969436844,-152.0,0.00013654,2]
[353627536,1739969436854,-12790.11,0.0001369,2]
[353627537,1739969436863,-181.2,0.0001369,2]
[353627538,1739969436874,-186.3111693,0.00013697,2]
[353627539,1739969436883,-500.0,0.00013698,2]
[353627540,1739969436892,-500.0,0.00013698,2]
[353627541,1739969436901,-589.01577978,0.00013698,2]
[353627542,1739969436910,-547.13,0.00013698,2]
[353627543,1739969436919,-500.0,0.00013698,2]
[353627544,1739969436929,-500.0,0.00013698,2]
[353627545,1739969436938,-340.28,0.00013698,2]
[353627546,1739969436947,-503.73609793,0.00013698,2]
[353627547,1739969436956,-500.0,0.00013698,2]
[353627548,1739969436966,-500.0,0.00013698,2]
[353627549,1739969436975,-500.0,0.00013698,2]
[353627550,1739969436985,-500.0,0.00013698,2]
[353627551,1739969436995,-500.0,0.00013698,2]
[353627552,1739969437004,-500.0,0.00013698,2]
[353627553,1739969437014,-423.10589528,0.00013698,2]
[353627554,1739969437023,-270.02,0.00013698,2]
[353627555,1739969437032,-500.0,0.00013698,2]
[353627556,1739969437042,-336.37101029,0.00013698,2]
[353627557,1739969437051,-500.0,0.00013698,2]
[353627558,1739969437060,-500.0,0.00013698,2]
[353627559,1739969437069,-500.0,0.00013698,2]
[353627560,1739969437079,-500.0,0.00013698,2]
[353627561,1739969437091,-500.0,0.00013698,2]
[353627562,1739969437101,-500.0,0.00013698,2]
[353627563,1739969437110,-500.0,0.00013698,2]
[353627564,1739969437119,-500.0,0.00013698,2]
[353627565,1739969437130,-500.6914804,0.00013698,2]
[353627566,1739969437139,-527.89325019,0.00013698,2]
[353627567,1739969437149,-500.90103874,0.00013698,2]
[353627568,1739969437158,-502.95349315,0.00013698,2]
[353627569,1739969437168,-501.15478708,0.00013698,2]
[353627570,1739969437179,-501.01526434,0.00013698,2]
[353627571,1739969437188,-500.0,0.00013698,2]
[353627572,1739969437197,-502.18158285,0.00013698,2]
[353627573,1739969437207,-500.0,0.00013698,2]
[353627574,1739969437216,-188.66977988,0.00013698,2]
[353627575,1739969437226,-526.31124578,0.00013698,2]
[353627576,1739969437235,-500.0,0.00013698,2]
[353627577,1739969437244,-500.0,0.00013698,2]
[353627578,1739969437254,-500.0,0.00013698,2]
[353627579,1739969437263,-500.0,0.00013698,2]
[353627580,1739969437272,-500.0,0.00013698,2]
[353627581,1739969437281,-500.0,0.00013698,2]
[353627582,1739969437290,-500.0,0.00013698,2]
[353627583,1739969437299,-500.0,0.00013698,2]
[353627584,1739969437309,-500.0,0.00013698,2]
[353627585,1739969437318,-500.0,0.00013698,2]
[353627586,1739969437327,-500.0,0.00013698,2]
[353627587,1739969437337,-500.0,0.00013698,2]
[353627588,1739969437346,-500.0,0.00013698,2]
[353627589,1739969437355,-500.0,0.00013698,2]
[353627590,1739969437364,-500.0,0.00013698,2]
[353627591,1739969437374,-500.0,0.00013698,2]
[353627592,1739969437384,-500.0,0.00013698,2]
[353627593,1739969437394,-500.0,0.00013698,2]
[353627594,1739969437404,-501.28788491,0.00013698,2]
[353627595,1739969437413,-500.0,0.00013698,2]
[353627596,1739969437423,-500.0,0.00013698,2]
[353627597,1739969437433,-500.0,0.00013698,2]
[353627598,1739969437443,-500.0,0.00013698,2]
[353627599,1739969437452,-500.0,0.00013698,2]
[353627600,1739969437462,-500.0,0.00013698,2]
[353627601,1739969437472,-500.0,0.00013698,2]
[353627602,1739969437482,-500.0,0.00013698,2]
[353627603,1739969437491,-500.0,0.00013698,2]
[353627604,1739969437501,-572.83499134,0.00013698,2]
[353627605,1739969437510,-500.0,0.00013698,2]
[353627606,1739969437519,-2048.68,0.00013698,2]
[353627607,1739969437528,-500.0,0.00013698,2]
[353627608,1739969437537,-500.0,0.00013698,2]
[353627609,1739969437547,-500.0,0.00013698,2]
[353627610,1739969437556,-500.0,0.00013698,2]
[353627611,1739969437565,-500.0,0.00013698,2]
[353627612,1739969437575,-504.10535091,0.00013698,2]
[353627613,1739969437584,-500.0,0.00013698,2]
[353627614,1739969437593,-500.0,0.00013698,2]
[353627615,1739969437602,-500.0,0.00013698,2]
[353627616,1739969437611,-500.0,0.00013698,2]
[353627617,1739969437621,-500.0,0.00013698,2]
[353627618,1739969437630,-535.86,0.00013698,2]
[353627619,1739969437638,-161.77,0.00013698,2]
[353627620,1739969437647,-500.0,0.00013698,2]
[353627621,1739969437656,-500.0,0.00013698,2]
[353627622,1739969437666,-500.0,0.00013698,2]
[353627623,1739969437675,-500.0,0.00013698,2]
[353627624,1739969437684,-741.72,0.00013698,2]
[353627625,1739969437693,-500.0,0.00013698,2]
[353627626,1739969437702,-500.0,0.00013698,2]
[353627627,1739969437711,-2604.0,0.00013698,2]
[353627628,1739969437720,-207.1551107,0.00013698,2]
[353627643,1739969438711,-292.8448893,0.00013698,2]
[353627644,1739969438721,-157.64159546,0.00013698,2]
[353627645,1739969438731,-711.65,0.00013698,2]
[353627646,1739969438741,-500.0,0.00013698,2]
[353627647,1739969438750,-1498.83,0.00013698,2]
[353627648,1739969438760,-12066.72,0.00013698,2]
[353627649,1739969438769,-500.0,0.00013698,2]
[353627650,1739969438778,-500.0,0.00013698,2]
[353627651,1739969438788,-500.0,0.00013698,2]
[353627652,1739969438797,-504.39506712,0.00013698,2]
[353627654,1739969438807,-500.0,0.00013698,2]
[353627655,1739969438818,-510.57326734,0.00013698,2]
[353627656,1739969438827,-849.24,0.00013698,2]
[353627657,1739969438837,-500.0,0.00013698,2]
[353627658,1739969438849,-500.0,0.00013698,2]
[353627659,1739969438859,-500.0,0.00013698,2]
[353627660,1739969438868,-3180.99,0.00013698,2]
[353627661,1739969438878,-1175.72,0.00013698,2]
[353627662,1739969438888,-500.0,0.00013698,2]
[353627663,1739969438897,-500.0,0.00013698,2]
[353627664,1739969438907,-501.11275712,0.00013698,2]
[353627665,1739969438916,-500.0,0.00013698,2]
[353627666,1739969438926,-500.0,0.00013698,2]
[353627667,1739969438936,-500.0,0.00013698,2]
[353627668,1739969438946,-500.0,0.00013698,2]
[353627669,1739969438955,-500.0,0.00013698,2]
[353627670,1739969438966,-501.07652808,0.00013698,2]
[353627671,1739969438975,-500.0,0.00013698,2]
[353627672,1739969438985,-501.19445517,0.00013698,2]
[353627673,1739969438995,-317.631759,0.00013699,2]
[353627674,1739969439005,-679.349575,0.00013699,2]
[353627675,1739969439015,-500.0,0.00013699,2]
[353627676,1739969439025,-500.0,0.00013699,2]
[353627677,1739969439035,-500.0,0.00013699,2]
[353627678,1739969439044,-500.0,0.00013699,2]
[353627679,1739969439054,-500.0,0.00013699,2]
[353627680,1739969439064,-504.3254177,0.00013699,2]
[353627681,1739969439074,-207.82153303,0.00013699,2]
[353627682,1739969439093,-500.0,0.00013699,2]
[353627683,1739969439106,-500.0,0.00013699,2]
[353627684,1739969439116,-151.0,0.000137,2]
[353627685,1739969439125,-619.72,0.00013779,2]
[353627686,1739969439136,-500.0,0.0001378,2]
[353627687,1739969439145,-500.0,0.0001378,2]
[353627688,1739969439155,-252.80722936,0.0001378,2]
[353627689,1739969439165,-500.0,0.0001378,2]
[353627690,1739969439176,-500.0,0.0001378,2]
[353627691,1739969439187,-400.22816265,0.0001378,2]
[353627692,1739969439198,-500.0,0.0001378,2]
[353627693,1739969439208,-500.0,0.0001378,2]
[353627694,1739969439217,-500.0,0.0001378,2]
[353627695,1739969439227,-500.0,0.0001378,2]
[353627696,1739969439237,-500.0,0.0001378,2]
[353627697,1739969439247,-500.0,0.0001378,2]
[353627698,1739969439257,-500.0,0.0001378,2]
[353627699,1739969439268,-500.0,0.0001378,2]
[353627700,1739969439278,-486.95820269,0.0001378,2]
[353627701,1739969439288,-500.0,0.0001378,2]
[353627702,1739969439298,-500.0,0.0001378,2]
[353627703,1739969439308,-500.0,0.0001378,2]
[353627704,1739969439317,-500.0,0.0001378,2]
[353627705,1739969439327,-500.0,0.0001378,2]
[353627706,1739969439337,-500.0,0.0001378,2]
[353627707,1739969439346,-360.40884181,0.0001378,2]
[353627708,1739969439359,-139.59115819,0.0001378,2]
[353627709,1739969439368,-500.0,0.0001378,2]
[353627710,1739969439378,-500.0,0.0001378,2]
[353627711,1739969439388,-500.0,0.0001378,2]
[353627712,1739969439397,-38.17231105,0.0001378,2]
[353627713,1739969439409,-461.82768895,0.0001378,2]
[353627714,1739969439418,-500.0,0.0001378,2]
[353627715,1739969439427,-507.00335699,0.0001378,2]
[353627716,1739969439437,-500.0,0.0001378,2]
[353627717,1739969439447,-2048.68,0.0001378,2]
[353627718,1739969439456,-500.0,0.0001378,2]
[353627719,1739969439467,-500.0,0.0001378,2]
[353627720,1739969439477,-470.2,0.0001378,2]
[353627721,1739969439487,-500.0,0.0001378,2]
[353627722,1739969439496,-500.0,0.0001378,2]
[353627723,1739969439506,-535.86,0.0001378,2]
[353627724,1739969439516,-500.0,0.0001378,2]
[353627725,1739969439526,-500.0,0.0001378,2]
[353627726,1739969439536,-500.0,0.0001378,2]
[353627727,1739969439546,-741.72,0.0001378,2]
[353627728,1739969439556,-500.0,0.0001378,2]
[353627729,1739969439566,-500.0,0.0001378,2]
[353627730,1739969439576,-2604.0,0.0001378,2]
[353627731,1739969439586,-500.0,0.0001378,2]
[353627732,1739969439595,-711.65,0.0001378,2]
[353627733,1739969439605,-500.0,0.0001378,2]
[353627734,1739969439614,-1498.83,0.0001378,2]
[353627735,1739969439624,-12066.72,0.0001378,2]
[353627736,1739969439634,-500.0,0.0001378,2]
[353627737,1739969439644,-500.0,0.0001378,2]
[353627738,1739969439655,-500.0,0.0001378,2]
[353627739,1739969439666,-500.0,0.0001378,2]
[353627740,1739969439675,-849.24,0.0001378,2]
[353627741,1739969439685,-500.0,0.0001378,2]
[353627742,1739969439695,-500.0,0.0001378,2]
[353627743,1739969439704,-506.2000797,0.0001378,2]
[353627744,1739969439714,-3180.99,0.0001378,2]
[353627745,1739969439724,-1175.72,0.0001378,2]
[353627746,1739969439733,-611.25,0.0001378,2]
[353627747,1739969439743,-500.0,0.0001378,2]
[353627748,1739969439752,-500.0,0.0001378,2]
[353627749,1739969439761,-500.0,0.0001378,2]
[353627750,1739969439771,-151.0,0.000138,2]
[353627751,1739969439780,-517.982789,0.00013863,2]
[353627752,1739969439790,-500.0,0.00013863,2]
[353627753,1739969439800,-500.0,0.00013863,2]
[353627754,1739969439810,-608.33,0.00013863,2]
[353627755,1739969439820,-500.0,0.00013863,2]
[353627756,1739969439829,-500.0,0.00013863,2]
[353627757,1739969439839,-500.0,0.00013863,2]
[353627758,1739969439849,-500.0,0.00013863,2]
[353627759,1739969439859,-500.0,0.00013863,2]
[353627760,1739969439869,-500.0,0.00013863,2]
[353627761,1739969439879,-538.84,0.00013863,2]
[353627762,1739969439888,-534.16,0.00013863,2]
[353627763,1739969439898,-500.0,0.00013863,2]
[353627764,1739969439908,-500.0,0.00013863,2]
[353627765,1739969439918,-502.27547789,0.00013863,2]
[353627766,1739969439928,-500.0,0.00013863,2]
[353627767,1739969439938,-501.64097503,0.00013863,2]
[353627768,1739969439947,-500.0,0.00013863,2]
[353627769,1739969439957,-2048.68,0.00013863,2]
[353627770,1739969439967,-500.0,0.00013863,2]